Cogmind - Beta 13 @@@ ROGUE MODE // 2024.04.07 @ 18:35:38 Player: TheHaruspex Result: Self-destructed Performance ------------- Evolutions (4) 2000 Regions Visited (6) 1200 Robots Destroyed (58) 290 Value Destroyed (2102) 2102 Prototype IDs (9) 180 Alien Tech Used (0) 0 Bonus (11) 11 TOTAL SCORE: 5783 Bonus ------- High Alert Combat Kills 11 Cogmind --------- Core Integrity 178/850 Matter 244/300 Energy 100/100 System Corruption 7% Temperature Cool (0) Movement Flying (35) Location -6/Factory Parts ------- > --- POWER (2) -------- (None) > --- PROPULSION (4) --- VTOL Module > --- UTILITY (6) ------ (None) > --- WEAPON (3) ------- (None) > --- INVENTORY (5) ---- Nuclear Core Carbon-fiber Leg Matter Compressor (70) Peak State ------------ > --- POWER ------------ Light Nuclear Core Fission Core > --- PROPULSION ------- Carbon-fiber Leg Carbon-fiber Leg VSS Leg Improved Titanium Leg > --- UTILITY ---------- Small Storage Unit Improved Terrain Scanner Kinecellerator Hardened Medium Armor Plating Improved Medium Armor Plating Hacking Suite > --- WEAPON ----------- High-powered Shotgun Enhanced Autogun Flak Gun > --- INVENTORY -------- Deuterium Engine Nuclear Core Carbon-fiber Leg Improved Carbon-fiber Leg Matter Compressor Hardened Medium Armor Plating Autogun Rocket Launcher [Rating: 52] Favorites ----------- Power Light Nuclear Core Engine Light Ion Engine Power Core Light Nuclear Core Propulsion Aluminum Leg Leg Aluminum Leg Flight Unit VTOL Module Utility Small Storage Unit Device Improved Terrain Scanner Storage Small Storage Unit Hackware Hacking Suite Protection Hardened Medium Armor Plating Weapon Shotgun Ballistic Gun Shotgun Ballistic Cannon Flak Cannon Launcher Rocket Launcher Build | -11 -10 -9 -9 -8 -7 -6 ------- Run | Yrd Mat Mat Min Mat Fac Fac Slots Evolved 8 | . . 2 . 2 2 2 Power 1 | . . . . 1 . . Propulsion 2 | . . 1 . 1 . . Utility 4 | . . 1 . . 1 2 Weapon 1 | . . . . . 1 . Parts Attached 131 | 6 30 27 1 39 12 16 Power 13 | 1 1 2 . 5 2 2 Engine 7 | 1 1 1 . 2 1 1 Core 6 | . . 1 . 3 1 1 Reactor . | . . . . . . . Propulsion 19 | 2 1 1 . 6 4 5 Treads . | . . . . . . . Leg 18 | 2 1 1 . 6 4 4 Wheel . | . . . . . . . Hover . | . . . . . . . Flight 1 | . . . . . . 1 Utility 68 | 1 21 22 1 14 5 4 Device 47 | . 16 17 1 9 2 2 Storage 2 | 1 . . . . 1 . Processor . | . . . . . . . Hackware 1 | . . . . . 1 . Protection 18 | . 5 5 . 5 1 2 Artifact . | . . . . . . . Weapon 31 | 2 7 2 . 14 1 5 Energy Gun . | . . . . . . . Energy Cannon . | . . . . . . . Ballistic Gun 21 | 2 5 1 . 8 1 4 Ballistic Cannon 1 | . . . . 1 . . Launcher 9 | . 2 1 . 5 . 1 Special Weapon . | . . . . . . . Impact Weapon . | . . . . . . . Slashing Weapon . | . . . . . . . Piercing Weapon . | . . . . . . . Special Melee Weapon . | . . . . . . . Unidentified Prototypes 1 | . . . . 1 . . Parts Lost 28 | . . . . 8 . 20 Power 4 | . . . . 1 . 3 Propulsion 9 | . . . . 4 . 5 Utility 9 | . . . . 2 . 7 Weapon 6 | . . . . 1 . 5 Highest Loss Streak 20 | . . . . 8 . 20 To Critical Strikes 1 | . . . . . . 1 Average Slot Usage (%) 97 | . 98 100 100 96 98 95 Engine 6 | . 14 4 . 5 7 . Core 7 | . . 6 11 12 7 11 Leg 29 | . 28 33 33 33 29 24 Device 9 | . 10 7 17 7 4 12 Storage 9 | . 14 11 11 9 7 5 Hackware 1 | . . . . . 1 5 Protection 10 | . 2 14 4 9 15 12 Ballistic Gun 21 | . 26 21 22 15 22 18 Naked Turns 5 | . . . . . . 5 Heaviest Build 50 | 11 19 26 22 43 43 50 Greatest Support 62 | 20 20 30 30 45 52 62 Greatest Overweight (x) 13 | 1 . . . 13 . 1 Average Overweight (x) . | . . . . . . . Largest Inventory Capacity 8 | 8 8 8 8 8 8 8 Average Capacity 7 | 7 8 8 8 8 8 7 Most Carried 8 | 2 8 8 8 8 8 8 Average Carried 7 | . 7 6 8 7 7 7 Final Capacity 8 | 8 8 8 8 8 8 5 Final Carried 8 | 2 8 8 8 6 8 3 Class Distribution -------------------- 59% | Mutant 36% | Scavenger-Tank 3% | Scavenger-Mutant Dominant Class ---------------- Mutant | -10/Materials Mutant | -9/Materials Mutant | -9/Mines Mutant | -8/Materials Scavenger-Tank | -7/Factory Scavenger-Tank | -6/Factory Resources | -11 -10 -9 -9 -8 -7 -6 ----------- Run | Yrd Mat Mat Min Mat Fac Fac Matter Collected 2554 | 215 457 309 12 594 621 346 Remotely . | . . . . . . . Salvage Created 2083 | . 187 415 . 711 390 380 Parts 128 | . 24 26 . 36 13 29 Haulers Intercepted 1 | . . . . 1 . . Recyclers Shooed 3 | . . . . 1 1 1 Parts Field Recycled . | . . . . . . . Retrieved Matter . | . . . . . . . Parts Self-Destructed . | . . . . . . . Prevented . | . . . . . . . Kills | -11 -10 -9 -9 -8 -7 -6 ------- Run | Yrd Mat Mat Min Mat Fac Fac Combat Hostiles Destroyed 44 | . 4 10 . 14 5 11 Guns 33 | . 4 9 . 9 5 6 Cannons 1 | . . . . 1 . . AOE 10 | . . 1 . 4 . 5 Classes Destroyed 13 | . 2 2 . 5 . 4 Worker 3 | . . . . 3 . . Builder 6 | . 3 . . 3 . . Hauler 1 | . . . . 1 . . Recycler 3 | . . . . 1 2 . Watcher 1 | . . . . . . 1 Swarmer 4 | . . . . . . 4 Grunt 20 | . 4 6 . 7 2 1 Duelist 1 | . . 1 . . . . Protector 1 | . . . . . . 1 Sentry 8 | . . 3 . 3 1 1 Specialist 5 | . . . . 2 2 1 Hunter 4 | . . . . 2 . 2 Programmer 1 | . . . . . . 1 Best Kill Streak 7 | . 3 3 . 7 4 6 Combat Bots Only 5 | . 2 3 . 3 2 5 Max Kills in Single Turn 6 | . 2 1 . 6 1 2 Gunslinging . | . . . . . . . Exploded 3 | . . 1 . 3 . 2 Melee . | . . . . . . . Uniques/NPCs Destroyed . | . . . . . . . Combat | -11 -10 -9 -9 -8 -7 -6 -------- Run | Yrd Mat Mat Min Mat Fac Fac Hostile Shots Fired 467 | . 20 18 . 86 40 303 Missed 156 | . 5 7 . 28 9 107 Damage Taken 5610 | . 179 139 . 1913 319 3060 Core 1166 | . 42 12 . 410 30 672 Absorbed by Shields . | . . . . . . . Ignored by Resistances 36 | . . . . 22 14 . Regen/Repaired (Parts) 273 | . . . . 122 151 . Core Remaining (%) 80 | 100 83 . 97 25 95 . Volleys Fired 109 | . 14 17 . 35 15 28 Largest 3 | . 2 2 . 2 3 3 Hottest 78 | . 53 53 . 67 73 78 Shots Fired 241 | . 28 34 . 69 45 65 Gun 216 | . 24 32 . 56 45 59 Cannon 3 | . . . . 3 . . Launcher 22 | . 4 2 . 10 . 6 Special . | . . . . . . . Kinetic 219 | . 24 32 . 59 45 59 Thermal . | . . . . . . . Explosive 22 | . 4 2 . 10 . 6 Electromagnetic . | . . . . . . . Robot Hit Streak 14 | . 6 12 . 10 14 4 Robot Miss Streak 10 | . 3 2 . 3 6 10 Penetration Max . | . . . . . . . Secondary Targets 1 | . 1 . . . . . Max Gunslinging Chain 1 | . 1 . . . . . Shots Hit Robots 162 | . 16 25 . 56 32 33 Core Hits 168 | . 11 21 . 58 21 57 Critical Kills . | . . . . . . . Critical Parts Destroyed 1 | . . . . 1 . . Critical Strikes 1 | . . . . 1 . . Destroy 1 | . . . . 1 . . Melee Attacks . | . . . . . . . Impact . | . . . . . . . Slashing . | . . . . . . . Piercing . | . . . . . . . Sneak Attacks . | . . . . . . . Combat Hostiles . | . . . . . . . Follow-up Attacks . | . . . . . . . Damage Inflicted 4712 | . 269 469 . 1563 583 1828 Guns 2456 | . 204 387 . 760 583 522 Cannons 52 | . . . . 52 . . Explosions 2152 | . 65 82 . 720 . 1285 Melee . | . . . . . . . Ramming 52 | . . . . 31 . 21 Kinetic 2508 | . 204 387 . 812 583 522 Thermal . | . . . . . . . Explosive 2152 | . 65 82 . 720 . 1285 Electromagnetic . | . . . . . . . Impact . | . . . . . . . Slashing . | . . . . . . . Piercing . | . . . . . . . Highest Corruption 18 | . . . . 18 . 7 Average Corruption 13 | . . . . 16 . 4 Corruption Purged . | . . . . . . . Corruption Blocked . | . . . . . . . Effects 9 | . . . . 9 . . Message Errors 3 | . . . . 3 . . Matter Fused 2 | . . . . 2 . . Heat Flow Errors 2 | . . . . 2 . . Energy Discharges 1 | . . . . 1 . . Parts Fused 1 | . . . . 1 . . Overload Shots . | . . . . . . . Overflow Damage 14 | . . . . 14 . . Projectiles . | . . . . . . . Explosions 14 | . . . . 14 . . Melee . | . . . . . . . Knockbacks . | . . . . . . . Impact . | . . . . . . . Kinetic . | . . . . . . . Secondary . | . . . . . . . Self-Inflicted Damage 328 | . 16 . . 190 . 122 Shots 10 | . 1 . . 5 . 4 Rammed 8 | . . . . . . 8 Targets Rammed 16 | . . . . 3 . 13 Kicked 8 | . . . . 3 . 5 Crushed . | . . . . . . . Highest Temperature 323 | . 18 66 . 245 258 323 Average Temperature 80 | . 9 19 . 75 119 110 Received Heat Transfer 621 | . 90 54 . 207 54 216 Siege Activations . | . . . . . . . Robots Corrupted . | . . . . . . . Combat Hostiles . | . . . . . . . Parts Fried . | . . . . . . . Impact Corruptions . | . . . . . . . Robots Melted . | . . . . . . . Combat Hostiles . | . . . . . . . Parts Melted . | . . . . . . . Heat Transferred . | . . . . . . . Parts Sabotaged . | . . . . . . . Parts Stolen . | . . . . . . . Parts Stripped . | . . . . . . . Power Chain Reactions . | . . . . . . . Alert | -11 -10 -9 -9 -8 -7 -6 ------- Run | Yrd Mat Mat Min Mat Fac Fac Peak Influence 423 | . 105 165 64 423 339 225 Initial 191 | . . 10 64 24 191 29 Average 95 | . 28 65 64 159 182 53 Maximum Alert Level 2 | . . . . 2 1 1 Low Security (%) 87 | 100 100 100 100 69 63 99 Level 1 11 | . . . . 22 36 . Level 2 1 | . . . . 8 . . Level 3 . | . . . . . . . Level 4 . | . . . . . . . Level 5 . | . . . . . . . High Security . | . . . . . . . Max Security . | . . . . . . . Squads Dispatched 15 | . 3 2 . 5 3 2 Investigation 6 | . 2 1 . 1 2 . Extermination . | . . . . . . . Reinforcement 8 | . 1 1 . 4 1 1 Assault . | . . . . . . . Garrison 1 | . . . . . . 1 Intercept . | . . . . . . . Searches Triggered . | . . . . . . . Construction Impeded 3 | . . . . 2 . 1 Haulers Reinforced . | . . . . . . . Active Scanning Responses . | . . . . . . . Cargo Convoy Interrupts 1 | . . . . . . 1 Stealth | -11 -10 -9 -9 -8 -7 -6 --------- Run | Yrd Mat Mat Min Mat Fac Fac Distress Signals 3 | . . 1 . . 1 1 Communications Jammed . | . . . . . . . Distress Signals . | . . . . . . . Times Spotted 83 | . 4 13 . 29 7 30 Peak Tracking Total 10 | . 2 4 . 6 3 10 Tactical Retreats 2 | . . . . 2 . . Traps | -11 -10 -9 -9 -8 -7 -6 ------- Run | Yrd Mat Mat Min Mat Fac Fac Traps Triggered 3 | . 2 1 . . . . Indirectly . | . . . . . . . Trap Hack Attempts . | . . . . . . . Triggered . | . . . . . . . Disarmed . | . . . . . . . Reprogrammed . | . . . . . . . Reused . | . . . . . . . Traps Extracted . | . . . . . . . Installed . | . . . . . . . Triggered . | . . . . . . . Machines | -11 -10 -9 -9 -8 -7 -6 ---------- Run | Yrd Mat Mat Min Mat Fac Fac Machines Disabled 5 | . . 1 . 3 . 1 Max in Single Turn 1 | . . 1 . 1 . 1 Garrison Access 1 | . . . . . 1 . Machines Repaired . | . . . . . . . Machines Dismantled . | . . . . . . . Machines Sabotaged . | . . . . . . . Overloaded Fab Kills . | . . . . . . . Hacking | -11 -10 -9 -9 -8 -7 -6 --------- Run | Yrd Mat Mat Min Mat Fac Fac Machines Accessed 25 | . 4 4 . 5 10 2 Terminals 16 | . 3 2 . 4 5 2 Fabricators . | . . . . . . . Repair Stations 4 | . . . . 1 3 . Recycling Units 3 | . 1 1 . . 1 . Scanalyzers 1 | . . 1 . . . . Garrison Access 1 | . . . . . 1 . Total Hacks 67 | . 12 10 . 15 25 5 Successful 41 | . 8 7 . 12 11 3 Failed 26 | . 4 3 . 3 14 2 Catastrophic 4 | . . 1 . 1 2 . Database Lockouts . | . . . . . . . Manual 7 | . 2 . . . 5 . Terminals 42 | . 10 5 . 9 13 5 Fabricators . | . . . . . . . Repair Stations 16 | . . . . 6 10 . Recycling Units 6 | . 2 3 . . 1 . Scanalyzers 2 | . . 2 . . . . Garrison Access 1 | . . . . . 1 . Terminal Hacks 21 | . 6 2 . 6 4 3 Record 3 | . . . . 1 . 2 Robot Analysis 1 | . 1 . . . . . Prototype ID Bank 5 | . 2 . . 3 . . Open DSF 1 | . . . . . 1 . Level Access Points 1 | . . . . . 1 . Alert Level 2 | . . 1 . 1 . . Unreport Threat 3 | . . 1 . . 1 1 Locate Traps 1 | . 1 . . . . . Hauler Manifests 2 | . 1 . . 1 . . Registered Components 1 | . 1 . . . . . Zone Layout 1 | . . . . . 1 . Fabricator Hacks . | . . . . . . . Repair Station Hacks 11 | . . . . 6 5 . Scan Component 6 | . . . . 3 3 . Repair 5 | . . . . 3 2 . Recycling Unit Hacks 6 | . 2 3 . . 1 . Process 1 | . . 1 . . . . Report Inventory 2 | . 1 1 . . . . Retrieve Matter 2 | . . 1 . . 1 . Retrieve Components 1 | . 1 . . . . . Scanalyzer 2 | . . 2 . . . . Insert Component 1 | . . 1 . . . . Analyze 1 | . . 1 . . . . Garrison Access Hacks 1 | . . . . . 1 . Seal Access 1 | . . . . . 1 . Unauthorized Hacks . | . . . . . . . Terminals . | . . . . . . . Fabricators . | . . . . . . . Repair Stations . | . . . . . . . Recycling Units . | . . . . . . . Scanalyzers . | . . . . . . . Garrison Access . | . . . . . . . Data Cores Recovered . | . . . . . . . Used . | . . . . . . . Hacking Detections 19 | . 3 3 . 4 7 2 Full Trace Events 3 | . . . . 1 2 . Feedback Events . | . . . . . . . Feedback Blocked . | . . . . . . . Robot Schematics Acquired . | . . . . . . . Robots Built . | . . . . . . . Authchips . | . . . . . . . Time . | . . . . . . . Total Robot Build Rating . | . . . . . . . Part Schematics Acquired 1 | . . 1 . . . . Parts Built . | . . . . . . . Authchips . | . . . . . . . Time . | . . . . . . . Total Part Build Rating . | . . . . . . . Parts Repaired 5 | . . . . 3 2 . Time 125 | . . . . 96 29 . Parts Recycled . | . . . . . . . Recycled Matter 173 | . . 173 . . . . Retrieved Matter 173 | . . 173 . . . . Retrieved Components 3 | . 3 . . . . . Parts Scanalyzed 1 | . . 1 . . . . Part Schematics Acquired 1 | . . 1 . . . . Parts Damaged . | . . . . . . . Bothacking | -11 -10 -9 -9 -8 -7 -6 ------------ Run | Yrd Mat Mat Min Mat Fac Fac Used RIF Installer . | . . . . . . . Robots Hacked . | . . . . . . . Non-combat . | . . . . . . . Combat . | . . . . . . . Robot Hacks Applied . | . . . . . . . Relay Couplers Released . | . . . . . . . Fabnet Peak Effective % . | . . . . . . . Robots Rewired . | . . . . . . . Allies Hacked . | . . . . . . . Hacks Repelled . | . . . . . . . Allies | -11 -10 -9 -9 -8 -7 -6 -------- Run | Yrd Mat Mat Min Mat Fac Fac Total Allies . | . . . . . . . Largest Group . | . . . . . . . Highest-Rated Group . | . . . . . . . Highest-Rated Ally . | . . . . . . . Total Orders . | . . . . . . . Ally Attacks . | . . . . . . . Total Damage . | . . . . . . . Kills . | . . . . . . . Allies Corrupted . | . . . . . . . Allies Melted . | . . . . . . . Intel | -11 -10 -9 -9 -8 -7 -6 ------- Run | Yrd Mat Mat Min Mat Fac Fac Robot Analysis Total 1 | . 1 . . . . . Derelict Logs Recovered 1 | . . . 1 . . . Drone Launches . | . . . . . . . Drone Recoveries . | . . . . . . . Exploration | -11 -10 -9 -9 -8 -7 -6 ------------- Run | Yrd Mat Mat Min Mat Fac Fac Turns Passed 4161 | 53 821 666 236 780 795 810 Spaces Moved 2537 | 37 532 323 194 373 559 519 Core 7 | 4 . . . 2 . 1 Treads . | . . . . . . . Legs 2508 | 33 532 323 194 371 559 496 Wheels . | . . . . . . . Hover . | . . . . . . . Flight 22 | . . . . . . 22 Fastest Speed 35 | 50 120 120 120 120 112 35 Average Speed 119 | 115 120 120 120 126 119 111 Slowest Speed 700 | 120 120 120 120 700 120 190 Overloaded Moves . | . . . . . . . Propulsion Burnouts . | . . . . . . . Robots Hopped 1 | . . . . . . 1 Cave-ins Triggered 4 | . . . . 3 . 1 Exploration Rate (%) 33 | 4 71 27 71 31 15 16 Regions Visited 6 Branch Regions 1 Pre-discovered Areas 1 | . . . 1 . . . Known Exits Taken 1 | . . . . . 1 . Unknown Exits Taken 5 | 1 1 1 1 1 . . Scrap Searched 1 | . . . 1 . . . Spaces Dug 37 | . 14 . . 23 . . Terrain Destroyed 139 | . 32 . . 89 . 18 Melee . | . . . . . . . Projectile . | . . . . . . . AOE 139 | . 32 . . 89 . 18 Terrain Rammed . | . . . . . . . Walls Destroyed . | . . . . . . . Machines Disabled . | . . . . . . . Actions | -11 -10 -9 -9 -8 -7 -6 --------- Run | Yrd Mat Mat Min Mat Fac Fac Total 3441 | 44 680 556 197 602 658 704 Wait 557 | . 75 182 1 129 49 121 Move 2529 | 36 531 322 193 372 558 517 Hop 1 | . . . . . . 1 Pick Up 46 | 2 14 5 1 12 10 2 Fast Attach 36 | 6 6 . . 10 9 5 Attach 20 | . 1 2 . 7 2 8 Detach 8 | . 3 . . 1 2 2 Swap 75 | . 23 25 1 22 1 3 Drop 44 | . 13 3 1 11 12 4 Fire 109 | . 14 17 . 35 15 28 Melee . | . . . . . . . Ram 8 | . . . . . . 8 Kick 8 | . . . . 3 . 5 Crush . | . . . . . . . Escape Stasis . | . . . . . . . Rewire . | . . . . . . . Trap . | . . . . . . . Miscellaneous . | . . . . . . . Route ------- -11/Scrapyard -10/Materials (discovered 3 exits: *Mat / [*Min x2]) -9/Materials -9/Mines (discovered 3 exits: *Mat x2 / [*Zio]) -8/Materials -7/Factory (discovered 4 exits: *Fac x4) -6/Factory History --------- Turn | Location | Event 14 | -11/Scrapyard | Discovered new exit (range 16) 54 | -11/Scrapyard | Entered Materials 283 | -10/Materials | Discovered new exit (range 13) 306 | -10/Materials | Build established: Mutant 546 | -10/Materials | Discovered new exit (range 8) 595 | -10/Materials | Discovered new exit (range 10) 875 | -10/Materials | Entered another Materials area 875 | -9/Materials | Evolved 2 slots: Propulsion x1, Utility x1 1532 | -9/Materials | Discovered new exit (range 8) 1541 | -9/Materials | Entered Mines 1551 | -9/Mines | Learned location of Zion (-7) 1582 | -9/Mines | Discovered new exit (range 16) 1704 | -9/Mines | A Derelict revealed a hidden shortcut to a safe place 1742 | -9/Mines | Discovered new exit (range 13) 1777 | -9/Mines | Entered Materials 1777 | -8/Materials | Evolved 2 slots: Power x1, Propulsion x1 2203 | -8/Materials | Repaired Shotgun 2242 | -8/Materials | Repaired Reaction Control System 2270 | -8/Materials | Repaired Lrg. Matter Pod 2401 | -8/Materials | Crushed by falling debris 2401 | -8/Materials | System corruption reached 10% 2407 | -8/Materials | Crushed by falling debris 2430 | -8/Materials | Crushed by falling debris 2430 | -8/Materials | Core integrity fell below 50% 2461 | -8/Materials | Lost 8 parts (1p4n2u1w) 2532 | -8/Materials | Discovered new exit (range 16) 2557 | -8/Materials | Entered Factory 2557 | -7/Factory | Evolved 2 slots: Utility x1, Weapon x1 2561 | -7/Factory | Identified exit to DSF 2870 | -7/Factory | Repaired Aluminum Leg 2891 | -7/Factory | Build established: Scavenger-Tank 2919 | -7/Factory | Repaired Rocket Launcher 3232 | -7/Factory | Identified exit to Factory 3352 | -7/Factory | Entered another Factory area 3352 | -6/Factory | Evolved 2 slots: Utility x2 4100 | -6/Factory | Cargo convoy interrupted 4100 | -6/Factory | Garrison activated, responded to threat 4129 | -6/Factory | Crushed by falling debris 4146 | -6/Factory | Core integrity fell below 50% 4162 | -6/Factory | Self-destructed Last Messages --------------- Hacking Suite destroyed. Slug penetrates H-66 Slayer. H-66 Slayer destroyed. Slammed into S-27 Virus. K-01 Serf collects debris. Acquired 20 matter. U-05 Engineer builds a Wall. Slammed into S-27 Virus. Sml. Storage Unit destroyed. Slammed into S-27 Virus. Destabilizing: Core damaged (-25). Slammed into S-27 Virus. K-01 Serf collects debris. Slammed into S-27 Virus. S-27 Virus destroyed. Acquired VTOL Module. K-01 Serf collects debris. Slug penetrates Matter Pump. K-01 Serf collects debris. Slug penetrates Matter Pump. Map ----- +----------------------------------------------------+ | # #??????????# """ #?????????????????? | | # """ """ #????? ????# """ #?????#??#????????? | | # """ """ #??????????# """ #??#?????????????"? | | # """ """ #???????? ?# """ ####??????????????? | | # "" "" #??????? ??# """#??????????????? | | # "" "" #????? ????# """#??????????????? | | # #??????????# R"##?????????????? | | # """ """ #??????? ??# """#??????????????? | | # """ """ #??????????# "" #??????????????? | | # """ """ #?##+###+### ""T"" ####??????? ??????? | | # "" #?# """"" #??????#??????????? | | + ! "" #?# " #?????????????????? | | # #?# "%" #?????????????????? | | # ### ############+#+##????????????????? | | # ##% ### ! #?????????????????? | | # # """"""" #?#???????????????? | | #### % # """"""" #?????????????????? | | ### % == # """"""" #?????????????????? | | ! %%%%! + """"""" #?????????????????? | | % % | # [#??#??????????????? | | %% % =*## # """"""" #??????#??????????? | | %%!%%% *# # """"""" #?????????????????? | | %%%%%% # ######+## """"""" #?????????????????? | | != ## # """"""" #?????????????????? | | "%%%%% ## [# ! #?????????????????? | | %% "%% [## # @ #??#??????????????? | | %% ""% %## #######/######?????????????????? | | ###############?#R#??????????????????????? | | / ### #####??????????????????? | | #??????????????????? | | ##?????????????????? | | #??????????????????? | | # #+###+#??????????????????? | | # #????????????????????????? | | ####/########## #????????????????????????? | | ?? ?????????# #????????????????????????? | | + """?????????# #????????????????????????? | | # """?????????# #????????????????????????? | | # ????????????# #????????????????????????? | | ??????????????# #????????????????????????? | | ??????????????# #????????????????????????? | | ??????????????# #????????????????????????? | | ??????????????# ????????????????????????? | | ??????????????# ????????????????????????? | | ??????????????? ?????????????????????????? | | ?????????????????????????????????????????????????? | | ?????????????????????????????????????????????????? | | ?????????????????????????????????????????????????? | | ?????????????????????????????????????????????????? | | ?????????????????????????????????????????????????? | +----------------------------------------------------+ Best States ------------- Heat Dissipation 37 Energy Generation 27 Energy Capacity 370 Matter Stores 300 Matter Capacity 300 Sight Range 16 Robot Scan Range 14 Terrain Scan Range 16 Terrain Scan Density 10 Armor Coverage 450 Resistance: KI 20 Evasion (%) 63 Kinecelleration 30 Offensive Hacking 10 Item Schematics ----------------- Imp. Terrain Scanner | -9/Materials | Scanalyzed Robot Schematics ------------------ None Fabricated ------------ Nothing Alien Tech Used ----------------- None Achievements -------------- Troublemaker Unlikely Earthworm Challenges ------------ None Game ------ Seed AdvancedPhasingProjector Manual? 0 Play Time 01:18:26 Cumulative 8.4 hours Start 2024.04.07 @ 17:15:48 End 2024.04.07 @ 18:35:38 Sessions 1 Manual Loads 0 Difficulty Rogue Special Mode None Game No. 7 Rogue 7 Adventurer 0 Explorer 0 Win Type - Total 0 Types 0/0/0/0/0/0/0/0/0 Lore% 9 Gallery% 11 Achievement% 12 Wizard Run 0 Options --------- Layout 1 ASCII 0 Keyboard 0 Movement Numpad Keybinds 0 Fullscreen 1 Font 24/Smallcaps Map View 50x35 Zoom Use 0% Tactical HUD 0 Map Filters NONE Filters NONE Steam 1 RUN: 44e674db-393c-4eb6-9094-c15fd6798d60